[Event "45th FIDE Womens Olympiad 2024"]
[Site "Budapest"]
[Date "2024.09.11"]
[Round "1.186"]
[White "Frayna, Janelle Mae"]
[Black "Namangale, Susan"]
[Result "1-0"]
[ECO "B07"]
[WhiteElo "2216"]
[BlackElo "1521"]
[Annotator "ChessBase"]
[PlyCount "85"]
[EventDate "2024.09.05"]
[EventType "team-tourn"]
[EventCountry "HUN"]
[SourceTitle "playchess.com"]
[Source "ChessBase"]
[SourceQuality "1"]
[WhiteTeam "Philippines"]
[BlackTeam "Malawi"]
[WhiteTeamCountry "PHI"]
[BlackTeamCountry "MWI"]
[TimeControl "40/5400+30:1800+30"]

1. d4 d6 2. e4 b6 3. c4 Nf6 4. Nc3 g6 5. Bd3 Bg7 6. Nge2 O-O 7. O-O Nc6 8. f4 Bg4 9. h3 Bh5 10. Qa4 Na5 11. Ng3 e5 12. fxe5 dxe5 13. d5 Nb7 14. Be3 c5 15. Qc2 h6 16. a3 Qd7 17. Rf2 Qe7 18. Raf1 Nd6 19. b4 Nb7 20. Qb3 Rab8 21. Qa4 a5 22. bxa5 Nxa5 23. Rb1 Rb7 24. Rb5 Qd6 25. Rfb2 Rfb8 26. Qc2 Ra7 27. Bxc5 Qc7 28. Na4 Nd7 29. Bxb6 Nxb6 30. Rxb6 Nb7 31. c5 Bf8 32. d6 Bxd6 33. cxd6 Qxc2 34. Bxc2 Kf8 35. R2b4 Ke8 36. Bb3 Kd7 37. Nxh5 gxh5 38. Bxf7 h4 39. Bd5 Kc8 40. Be6+ Kd8 41. Nc5 Ke8 42. Rxb7 Raxb7 43. Rxb7 1-0

[Event "45th FIDE Womens Olympiad 2024"]
[Site "Budapest"]
[Date "2024.09.11"]
[Round "1.187"]
[White "Msukwa, Tupokiwe"]
[Black "Fronda, Jan Jodilyn"]
[Result "0-1"]
[ECO "B14"]
[WhiteElo "1674"]
[BlackElo "2165"]
[Annotator "NA RC"]
[PlyCount "72"]
[EventDate "2024.09.05"]
[EventType "team-tourn"]
[EventCountry "HUN"]
[SourceTitle "playchess.com"]
[Source "ChessBase"]
[SourceQuality "1"]
[WhiteTeam "Malawi"]
[BlackTeam "Philippines"]
[WhiteTeamCountry "MWI"]
[BlackTeamCountry "PHI"]
[TimeControl "40/5400+30:1800+30"]

1. d4 Nf6 2. c4 c5 3. e3 cxd4 4. exd4 d5 5. Nc3 g6 6. Bf4 Bg7 7. Bxb8 Rxb8 8. Qa4+ Bd7 9. Qxa7 Bc6 10. c5 Nd7 11. Qa3 Bxd4 12. b4 b6 13. Nf3 bxc5 14. Nxd4 cxd4 15. b5 Bb7 16. Nd1 Qc7 17. Rc1 Qe5+ 18. Be2 O-O 19. Qd3 Rfc8 20. Rxc8+ Rxc8 21. O-O Nc5 22. Qd2 Ne4 23. Qb2 Nc3 24. Bd3 Ra8 25. a3 Qd6 26. Nxc3 dxc3 27. Qxc3 Rxa3 28. Qc2 e5 29. Rd1 d4 30. f3 Bd5 31. Qc8+ Kg7 32. Qe8 Ra8 33. Qxa8 Bc6 34. Qb7 Bxb7 35. Rb1 Ba8 36. Be4 Qa3 0-1

[Event "45th FIDE Womens Olympiad 2024"]
[Site "Budapest"]
[Date "2024.09.11"]
[Round "1.188"]
[White "Canino, Ruelle"]
[Black "Simwaba, Anne"]
[Result "1-0"]
[ECO "A10"]
[WhiteElo "2004"]
[BlackElo "1596"]
[Annotator "NA RC"]
[PlyCount "69"]
[EventDate "2024.09.05"]
[EventType "team-tourn"]
[EventCountry "HUN"]
[SourceTitle "playchess.com"]
[Source "ChessBase"]
[SourceQuality "1"]
[WhiteTeam "Philippines"]
[BlackTeam "Malawi"]
[WhiteTeamCountry "PHI"]
[BlackTeamCountry "MWI"]
[TimeControl "40/5400+30:1800+30"]

1. c4 d5 2. cxd5 Qxd5 3. Nc3 Qd8 4. Nf3 Nf6 5. g3 e6 6. Bg2 Be7 7. O-O O-O 8. b3 Nbd7 9. Bb2 b6 10. Nd4 Ne5 11. Bxa8 Qxd4 12. Nd5 Qxb2 13. Nxe7+ Kh8 14. d4 Ned7 15. Nxc8 Rxc8 16. Bf3 g6 17. Qd3 Qa3 18. e4 Rd8 19. Qc3 c5 20. Rad1 cxd4 21. Qxd4 Qe7 22. e5 Ne8 23. Bc6 Qa3 24. Bxd7 Qxa2 25. Qh4 Rb8 26. Bxe8 Rxe8 27. Rd8 Rxd8 28. Qxd8+ Kg7 29. Qf6+ Kh6 30. Rd1 Qb2 31. Kg2 Qc3 32. g4 Qc6+ 33. Kg3 Qe4 34. Kh4 a5 35. f4 1-0

[Event "45th FIDE Womens Olympiad 2024"]
[Site "Budapest"]
[Date "2024.09.11"]
[Round "1.189"]
[White "Vanduyfhuys, Daria"]
[Black "Al Aisaee, Anat"]
[Result "1-0"]
[ECO "D20"]
[WhiteElo "2112"]
[BlackElo "1608"]
[Annotator "NA RC"]
[PlyCount "31"]
[EventDate "2024.09.05"]
[EventType "team-tourn"]
[EventCountry "HUN"]
[SourceTitle "playchess.com"]
[Source "ChessBase"]
[SourceQuality "1"]
[WhiteTeam "Belgium"]
[BlackTeam "Oman"]
[WhiteTeamCountry "BEL"]
[BlackTeamCountry "OMN"]
[TimeControl "40/5400+30:1800+30"]

1. d4 d5 2. c4 dxc4 3. Nc3 Nf6 4. e4 e6 5. Bxc4 Be7 6. Nge2 b6 7. O-O Bb7 8. f3 O-O 9. Be3 Nbd7 10. Nf4 Re8 11. e5 Nd5 12. Nfxd5 exd5 13. Nxd5 Bf8 14. Nf4 c5 15. Bxf7+ Kxf7 16. Qb3+ 1-0

[Event "45th FIDE Womens Olympiad 2024"]
[Site "Budapest"]
[Date "2024.09.11"]
[Round "1.190"]
[White "Al Balushi, Mariya"]
[Black "De Rycke, Tyani"]
[Result "0-1"]
[ECO "A08"]
[WhiteElo "1561"]
[BlackElo "2110"]
[Annotator "NA"]
[PlyCount "50"]
[EventDate "2024.09.05"]
[EventType "team-tourn"]
[EventCountry "HUN"]
[SourceTitle "playchess.com"]
[Source "ChessBase"]
[SourceQuality "1"]
[WhiteTeam "Oman"]
[BlackTeam "Belgium"]
[WhiteTeamCountry "OMN"]
[BlackTeamCountry "BEL"]
[TimeControl "40/5400+30:1800+30"]

1. e4 c5 2. Nf3 Nc6 3. d3 g6 4. g3 Bg7 5. Bg2 e6 6. O-O Nge7 7. Nbd2 O-O 8. Re1 d5 9. Nf1 Qc7 10. h4 h6 11. N1h2 dxe4 12. Rxe4 f5 13. Re2 e5 14. Qe1 Be6 15. Bh3 Bd5 16. Bg2 e4 17. dxe4 fxe4 18. Nd2 Nd4 19. Nxe4 Nxe2+ 20. Qxe2 Qc6 21. Ng4 Nf5 22. c4 Bxe4 23. Bxe4 Rae8 24. Bd5+ Qxd5 25. Qxe8 Qd1+ 0-1

[Event "45th FIDE Womens Olympiad 2024"]
[Site "Budapest"]
[Date "2024.09.11"]
[Round "1.191"]
[White "Dierckens, Sarah"]
[Black "Al Nadabi, Yomna"]
[Result "1-0"]
[ECO "B19"]
[WhiteElo "1943"]
[BlackElo "1612"]
[Annotator "NA"]
[PlyCount "111"]
[EventDate "2024.09.05"]
[EventType "team-tourn"]
[EventCountry "HUN"]
[SourceTitle "playchess.com"]
[Source "ChessBase"]
[SourceQuality "1"]
[WhiteTeam "Belgium"]
[BlackTeam "Oman"]
[WhiteTeamCountry "BEL"]
[BlackTeamCountry "OMN"]
[TimeControl "40/5400+30:1800+30"]

1. e4 c6 2. d4 d5 3. Nc3 dxe4 4. Nxe4 Bf5 5. Ng3 Bg6 6. h4 h6 7. Nf3 Nd7 8. h5 Bh7 9. Bd3 Bxd3 10. Qxd3 Ngf6 11. Ne4 Nxe4 12. Qxe4 Nf6 13. Qe2 e6 14. Bf4 Qa5+ 15. Bd2 Bb4 16. c3 Bd6 17. Ne5 Rd8 18. Nc4 Qc7 19. Nxd6+ Rxd6 20. Bf4 Nd5 21. Bxd6 Qxd6 22. Qg4 O-O 23. Rh3 f5 24. Qh4 Nf4 25. Rg3 e5 26. Rd1 Re8 27. Kf1 c5 28. Re3 Qd5 29. Qh2 Qc4+ 30. Ke1 Qd5 31. f3 cxd4 32. Rxd4 exd4 33. Rxe8+ Kf7 34. Qxf4 Kxe8 35. Qxd4 Qxd4 36. cxd4 Ke7 37. Ke2 Kd6 38. Ke3 b5 39. Kf4 Kd5 40. Kxf5 Kxd4 41. Kg6 b4 42. Kxg7 Kd3 43. Kxh6 Kc2 44. b3 Kb2 45. Kg5 Kxa2 46. h6 Kxb3 47. h7 a5 48. h8=Q a4 49. Qg8+ Kb2 50. Qg7+ Ka2 51. Qd4 Kb3 52. f4 a3 53. f5 a2 54. f6 Kc2 55. f7 b3 56. f8=Q 1-0

[Event "45th FIDE Womens Olympiad 2024"]
[Site "Budapest"]
[Date "2024.09.11"]
[Round "1.192"]
[White "Al Ghafri, Alanoud"]
[Black "Musabayeva, Diana"]
[Result "0-1"]
[ECO "B51"]
[WhiteElo "1546"]
[BlackElo "1911"]
[Annotator "NA"]
[PlyCount "118"]
[EventDate "2024.09.05"]
[EventType "team-tourn"]
[EventCountry "HUN"]
[SourceTitle "playchess.com"]
[Source "ChessBase"]
[SourceQuality "1"]
[WhiteTeam "Oman"]
[BlackTeam "Belgium"]
[WhiteTeamCountry "OMN"]
[BlackTeamCountry "BEL"]
[TimeControl "40/5400+30:1800+30"]

1. e4 c5 2. Nf3 d6 3. d4 cxd4 4. Qxd4 e5 5. Bb5+ Nd7 6. Qd3 a6 7. Ba4 Ngf6 8. Bg5 b5 9. Bxf6 Qxf6 10. Qd5 Rb8 11. Bb3 Bb7 12. Qd3 Nc5 13. Qe3 Nxe4 14. Nc3 Nxc3 15. Qxc3 Be7 16. O-O-O O-O 17. Bd5 Rfc8 18. Qb3 Bxd5 19. Rxd5 Qf4+ 20. Kb1 Qc4 21. Nd2 Qxb3 22. Nxb3 Rc7 23. Re1 Rbc8 24. c3 Rc4 25. Nd2 R4c5 26. Rd3 f5 27. g3 Kf7 28. h4 R5c6 29. Rf3 g6 30. h5 Kg7 31. Kc2 e4 32. Rfe3 d5 33. Nb3 Bf6 34. Rd1 Rd6 35. f3 Rc4 36. fxe4 Rxe4 37. Red3 Be5 38. Rxd5 Re2+ 39. Kb1 Rxd5 40. Rxd5 Bxg3 41. hxg6 hxg6 42. Nd4 Re4 43. Rd7+ Kh6 44. Ra7 Bf2 45. Rxa6 Bxd4 46. cxd4 Rxd4 47. Rb6 b4 48. Kc2 f4 49. Re6 Kh5 50. Re2 f3 51. Rd2 Rxd2+ 52. Kxd2 Kg4 53. Ke1 Kg3 54. Kf1 f2 55. a3 bxa3 56. bxa3 g5 57. a4 g4 58. a5 Kf3 59. a6 g3 0-1

[Event "45th FIDE Womens Olympiad 2024"]
[Site "Budapest"]
[Date "2024.09.11"]
[Round "1.193"]
[White "Alazmi, Amani"]
[Black "Sulyok, Eszter"]
[Result "0-1"]
[ECO "A36"]
[WhiteElo "1673"]
[BlackElo "2080"]
[Annotator "NA"]
[PlyCount "80"]
[EventDate "2024.09.05"]
[EventType "team-tourn"]
[EventCountry "HUN"]
[SourceTitle "playchess.com"]
[Source "ChessBase"]
[SourceQuality "1"]
[WhiteTeam "Kuwait"]
[BlackTeam "Hungary C"]
[WhiteTeamCountry "KUW"]
[BlackTeamCountry "HUN"]
[TimeControl "40/5400+30:1800+30"]

1. c4 c5 2. Nc3 g6 3. g3 Bg7 4. Bg2 Nc6 5. e3 e5 6. Nge2 Nge7 7. O-O O-O 8. b3 d6 9. Bb2 a6 10. Rb1 Rb8 11. a4 Bf5 12. Rc1 Nb4 13. e4 Be6 14. d3 Nec6 15. Rb1 Qd7 16. Nd5 b5 17. f4 f5 18. Kh1 bxa4 19. bxa4 Rb7 20. Bc3 a5 21. Nxb4 cxb4 22. Ba1 fxe4 23. Bxe4 d5 24. cxd5 Bxd5 25. fxe5 Rxf1+ 26. Qxf1 Bxe4+ 27. dxe4 Qd3 28. Rd1 Qxe4+ 29. Kg1 b3 30. Nc3 Qe3+ 31. Kh1 Rf7 32. Qc4 Qf3+ 33. Kg1 Bxe5 34. Rd7 Bd4+ 35. Rxd4 Nxd4 36. Qc8+ Kg7 37. Qc4 Qf2+ 38. Kh1 Qf1+ 39. Qxf1 Rxf1+ 40. Kg2 Rxa1 0-1

[Event "45th FIDE Womens Olympiad 2024"]
[Site "Budapest"]
[Date "2024.09.11"]
[Round "1.194"]
[White "Toth, Lili"]
[Black "Alazemi, Aisha"]
[Result "0-1"]
[ECO "C50"]
[WhiteElo "2105"]
[BlackElo "1539"]
[Annotator "NA"]
[PlyCount "62"]
[EventDate "2024.09.05"]
[EventType "team-tourn"]
[EventCountry "HUN"]
[SourceTitle "playchess.com"]
[Source "ChessBase"]
[SourceQuality "1"]
[WhiteTeam "Hungary C"]
[BlackTeam "Kuwait"]
[WhiteTeamCountry "HUN"]
[BlackTeamCountry "KUW"]
[TimeControl "40/5400+30:1800+30"]

1. e4 e5 2. Nf3 Nc6 3. Bc4 Bc5 4. d3 Qe7 5. a4 a5 6. Nc3 Nb4 7. O-O d6 8. Ng5 Nh6 9. h3 c6 10. Kh1 Be6 11. Nxe6 fxe6 12. Bxh6 gxh6 13. Qh5+ Kd7 14. f4 Rhf8 15. f5 Nxc2 16. Bxe6+ Kc7 17. Rac1 Nd4 18. Ba2 Rf6 19. Nd1 Qg7 20. Nf2 Kb6 21. Kh2 Rd8 22. Ng4 Ne2 23. Rce1 Nf4 24. Rxf4 exf4 25. Nxf6 Qg3+ 26. Kh1 Qxe1+ 27. Kh2 Bf2 28. h4 Qg1+ 29. Kh3 Qh1+ 30. Kg4 Qxg2+ 31. Kxf4 Qg3# 0-1

[Event "45th FIDE Womens Olympiad 2024"]
[Site "Budapest"]
[Date "2024.09.11"]
[Round "1.196"]
[White "Sipos, Stefania"]
[Black "Ajbali, Ghaleyah"]
[Result "1-0"]
[ECO "B12"]
[WhiteElo "1993"]
[BlackElo "1513"]
[Annotator "NA"]
[PlyCount "61"]
[EventDate "2024.09.05"]
[EventType "team-tourn"]
[EventCountry "HUN"]
[SourceTitle "playchess.com"]
[Source "ChessBase"]
[SourceQuality "1"]
[WhiteTeam "Hungary C"]
[BlackTeam "Kuwait"]
[WhiteTeamCountry "HUN"]
[BlackTeamCountry "KUW"]
[TimeControl "40/5400+30:1800+30"]

1. e4 c6 2. d4 d5 3. e5 Bf5 4. g4 Bg6 5. e6 fxe6 6. h4 c5 7. h5 Bf7 8. g5 cxd4 9. g6 hxg6 10. hxg6 Rxh1 11. gxf7+ Kxf7 12. Qf3+ Nf6 13. Qxh1 Qd6 14. Nf3 Nc6 15. Ng5+ Ke8 16. Bh3 Nd8 17. Qf3 Rc8 18. Na3 Qb4+ 19. Kd1 Rc6 20. Qd3 Kd7 21. Nf3 Ne4 22. Ke2 Nc5 23. Qxd4 Qxd4 24. Nxd4 Rc8 25. Bf4 g6 26. c3 Nf7 27. b4 Ne4 28. Bxe6+ Kd8 29. Bxc8 Kxc8 30. Ne6 Nxc3+ 31. Kd3 1-0

[Event "45th FIDE Womens Olympiad 2024"]
[Site "Budapest"]
[Date "2024.09.11"]
[Round "1.197"]
[White "Keinanen, Anastasia"]
[Black "Ruddy, Rachel"]
[Result "1-0"]
[ECO "E68"]
[WhiteElo "2212"]
[BlackElo "1662"]
[Annotator "ChessBase"]
[PlyCount "117"]
[EventDate "2024.09.05"]
[EventType "team-tourn"]
[EventCountry "HUN"]
[SourceTitle "playchess.com"]
[Source "ChessBase"]
[SourceQuality "1"]
[WhiteTeam "Finland"]
[BlackTeam "Jersey"]
[WhiteTeamCountry "FIN"]
[BlackTeamCountry "JCI"]
[TimeControl "40/5400+30:1800+30"]

1. d4 Nf6 2. Nf3 g6 3. g3 Bg7 4. Bg2 O-O 5. c4 d6 6. Nc3 Nbd7 7. O-O e5 8. e4 exd4 9. Nxd4 Re8 10. Re1 c6 11. b3 Ne5 12. h3 Qc7 13. Bb2 h6 14. f4 Ned7 15. Qd2 Nf8 16. Rad1 Ne6 17. Nde2 Rd8 18. f5 Ng5 19. e5 Ne8 20. h4 Nh7 21. fxg6 fxg6 22. Ne4 d5 23. c5 Bxe5 24. Bxe5 Qxe5 25. Qxh6 Bf5 26. Nf2 Qg7 27. Qf4 Nef6 28. Nd4 Bd7 29. Bh3 Bxh3 30. Nxh3 Qd7 31. Ne6 Rdc8 32. Qh6 Qf7 33. Nhg5 Nxg5 34. Nxg5 Qg7 35. Qxg7+ Kxg7 36. Re7+ Kg8 37. Rf1 Re8 38. Rxb7 Ne4 39. Nxe4 dxe4 40. Rf6 e3 41. Rxg6+ Kh8 42. Kf1 Rf8+ 43. Ke2 Rae8 44. Rgg7 Rf2+ 45. Ke1 Rxa2 46. Rh7+ Kg8 47. Rbg7+ Kf8 48. Rxa7 Rxa7 49. Rxa7 Re5 50. b4 Re4 51. Ra3 Rxb4 52. Rxe3 Rc4 53. Re5 Kf7 54. Kf2 Rc3 55. g4 Kf6 56. Rf5+ Ke6 57. h5 Ke7 58. Kg2 Ke6 59. h6 1-0

[Event "45th FIDE Womens Olympiad 2024"]
[Site "Budapest"]
[Date "2024.09.11"]
[Round "1.198"]
[White "Ashbrooke, Monika"]
[Black "Paasikangas, Johanna"]
[Result "0-1"]
[ECO "E67"]
[WhiteElo "1650"]
[BlackElo "2058"]
[Annotator "NA"]
[PlyCount "65"]
[EventDate "2024.09.05"]
[EventType "team-tourn"]
[EventCountry "HUN"]
[SourceTitle "playchess.com"]
[Source "ChessBase"]
[SourceQuality "1"]
[WhiteTeam "Jersey"]
[BlackTeam "Finland"]
[WhiteTeamCountry "JCI"]
[BlackTeamCountry "FIN"]
[TimeControl "40/5400+30:1800+30"]

1. d4 g6 2. Nf3 Bg7 3. g3 d6 4. c4 Nf6 5. Bg2 O-O 6. O-O Nbd7 7. Nc3 e5 8. dxe5 dxe5 9. Qc2 c6 10. Rd1 Qe7 11. Ng5 Nc5 12. Be3 Bf5 13. Qc1 Ne6 14. Nf3 Ng4 15. Nh4 Nxe3 16. Qxe3 Bg4 17. h3 Bh5 18. Nf3 Bxf3 19. Bxf3 Qb4 20. Rd2 Qxc4 21. Rad1 Nd4 22. Bg2 Rad8 23. b3 Qe6 24. Ne4 Qe7 25. Ng5 Nf5 26. Qxa7 Rxd2 27. Rxd2 Qxg5 28. Rd7 Qc1+ 29. Kh2 Nd4 30. Rxb7 Nxe2 31. h4 Qg1+ 32. Kh3 Nd4 33. Rc7 0-1

[Event "45th FIDE Womens Olympiad 2024"]
[Site "Budapest"]
[Date "2024.09.11"]
[Round "1.199"]
[White "Puuska, Heini"]
[Black "Forbes, Yasmin"]
[Result "1-0"]
[ECO "D00"]
[WhiteElo "1930"]
[BlackElo "1606"]
[Annotator "NA"]
[PlyCount "69"]
[EventDate "2024.09.05"]
[EventType "team-tourn"]
[EventCountry "HUN"]
[SourceTitle "playchess.com"]
[Source "ChessBase"]
[SourceQuality "1"]
[WhiteTeam "Finland"]
[BlackTeam "Jersey"]
[WhiteTeamCountry "FIN"]
[BlackTeamCountry "JCI"]
[TimeControl "40/5400+30:1800+30"]

1. d4 d5 2. Bg5 h6 3. Bh4 c5 4. e3 Nc6 5. Nf3 Bg4 6. Be2 g6 7. c3 c4 8. O-O Bg7 9. Nbd2 Nf6 10. h3 Bf5 11. Bg3 O-O 12. Ne5 Ne4 13. Nxc6 bxc6 14. Nxe4 Bxe4 15. f3 Bf5 16. e4 dxe4 17. Bxc4 Re8 18. fxe4 Be6 19. Bxe6 fxe6 20. Qg4 Kh7 21. Qxe6 Qc8 22. Qxc8 Raxc8 23. Rad1 Rcd8 24. d5 cxd5 25. Rxd5 Rc8 26. Rd7 a6 27. Rf7 Kg8 28. Rfxe7 Rxe7 29. Rxe7 Rc5 30. Rb7 Rc6 31. Bf2 Be5 32. Rb6 Rc4 33. Rxg6+ Kh7 34. Rxa6 Rxe4 35. Kf1 1-0

[Event "45th FIDE Womens Olympiad 2024"]
[Site "Budapest"]
[Date "2024.09.11"]
[Round "1.201"]
[White "Sosna Mehari Abraham"]
[Black "Miranda Rodriguez, Tania"]
[Result "0-1"]
[ECO "D02"]
[WhiteElo "1541"]
[BlackElo "2090"]
[Annotator "NA"]
[PlyCount "80"]
[EventDate "2024.09.05"]
[EventType "team-tourn"]
[EventCountry "HUN"]
[SourceTitle "playchess.com"]
[Source "ChessBase"]
[SourceQuality "1"]
[WhiteTeam "Eritrea"]
[BlackTeam "Mexico"]
[WhiteTeamCountry "ERI"]
[BlackTeamCountry "MEX"]
[TimeControl "40/5400+30:1800+30"]

1. d4 Nf6 2. Nf3 d5 3. c3 c5 4. Bf4 Nc6 5. e3 Qb6 6. Qc2 g6 7. Nbd2 Bg7 8. dxc5 Qxc5 9. Bd3 O-O 10. Nb3 Qb6 11. O-O Nh5 12. Rfe1 e5 13. Bg3 Nxg3 14. hxg3 e4 15. Bxe4 dxe4 16. Qxe4 Bf5 17. Qf4 a5 18. e4 Be6 19. Nbd4 Nxd4 20. Nxd4 Bxd4 21. cxd4 Qxd4 22. b3 a4 23. Red1 Qb6 24. Rd6 Qb4 25. bxa4 Rxa4 26. Rad1 Qxe4 27. Qf6 Qf5 28. Qe7 Rxa2 29. f3 Qc5+ 30. Kh2 Qf2 31. Rg1 Qxf3 32. Rxe6 Qh5+ 33. Qh4 Qxh4+ 34. gxh4 fxe6 35. Kh3 Ra3+ 36. Kh2 Rf4 37. g3 Rf2+ 38. Kh3 Raa2 39. Re1 h5 40. Rh1 Kg7 0-1

[Event "45th FIDE Womens Olympiad 2024"]
[Site "Budapest"]
[Date "2024.09.11"]
[Round "1.202"]
[White "Mendez Tovar, Yessica Yissel"]
[Black "Besrat Mesgena Yoseph"]
[Result "1-0"]
[ECO "C49"]
[WhiteElo "2004"]
[BlackElo "1557"]
[Annotator "NA"]
[PlyCount "97"]
[EventDate "2024.09.05"]
[EventType "team-tourn"]
[EventCountry "HUN"]
[SourceTitle "playchess.com"]
[Source "ChessBase"]
[SourceQuality "1"]
[WhiteTeam "Mexico"]
[BlackTeam "Eritrea"]
[WhiteTeamCountry "MEX"]
[BlackTeamCountry "ERI"]
[TimeControl "40/5400+30:1800+30"]

1. e4 e5 2. Nf3 Nc6 3. Nc3 Nf6 4. Bb5 Bb4 5. O-O O-O 6. Bxc6 dxc6 7. d3 Bxc3 8. bxc3 Nd7 9. d4 Qf6 10. Re1 h6 11. Bb2 c5 12. Qe2 cxd4 13. cxd4 Re8 14. dxe5 Nxe5 15. Nxe5 Rxe5 16. Bxe5 Qxe5 17. Rab1 Qg5 18. Qe3 Qg6 19. f4 f5 20. e5 b6 21. Rbd1 Bb7 22. Rd2 Re8 23. Qb3+ Kh7 24. Re3 Rd8 25. Red3 Rxd3 26. cxd3 Qg4 27. Rf2 h5 28. d4 Qg6 29. d5 Qf7 30. Rd2 h4 31. d6 Qxb3 32. axb3 cxd6 33. exd6 Bc6 34. d7 Bxd7 35. Rxd7 a5 36. Rb7 Kh6 37. Rxb6+ g6 38. Ra6 Kh5 39. Rxa5 Kg4 40. b4 Kxf4 41. b5 g5 42. b6 g4 43. b7 g3 44. b8=Q+ Kg4 45. h3+ Kg5 46. Qe5 Kh6 47. Qf6+ Kh7 48. Ra7+ Kg8 49. Qg7# 1-0

[Event "45th FIDE Womens Olympiad 2024"]
[Site "Budapest"]
[Date "2024.09.11"]
[Round "1.203"]
[White "Elshalom Essayas Berhane"]
[Black "Padilla Garcia, Cecilia Xasive"]
[Result "0-1"]
[ECO "B23"]
[WhiteElo "1659"]
[BlackElo "1954"]
[Annotator "NA"]
[PlyCount "92"]
[EventDate "2024.09.05"]
[EventType "team-tourn"]
[EventCountry "HUN"]
[SourceTitle "playchess.com"]
[Source "ChessBase"]
[SourceQuality "1"]
[WhiteTeam "Eritrea"]
[BlackTeam "Mexico"]
[WhiteTeamCountry "ERI"]
[BlackTeamCountry "MEX"]
[TimeControl "40/5400+30:1800+30"]

1. e4 c5 2. Nc3 d6 3. f4 Nc6 4. Bb5 Bd7 5. Bxc6 Bxc6 6. Nf3 Nf6 7. d3 g6 8. O-O Bg7 9. Qe1 Nd7 10. f5 Ne5 11. Nxe5 Bxe5 12. Bf4 Bxf4 13. Rxf4 g5 14. Rf2 f6 15. Nd5 h5 16. c4 b5 17. Rc1 bxc4 18. dxc4 Rb8 19. a3 Rb3 20. Rc3 Qa5 21. Qe3 Rxc3 22. Qxc3 Qxc3 23. Nxc3 Kd7 24. Nd5 Rb8 25. Kf1 Rb3 26. Nc3 Bb7 27. Rc2 Ba6 28. Nd5 Rd3 29. Ke2 Rd4 30. b3 Rxe4+ 31. Kf2 Bb7 32. Re2 Bxd5 33. cxd5 Rf4+ 34. Ke1 Rxf5 35. Rd2 Re5+ 36. Kf2 Kc7 37. Kf3 Kb6 38. Rd3 Kb5 39. Re3 c4 40. Rxe5 fxe5 41. bxc4+ Kxc4 42. Ke4 a5 43. Kf5 Kxd5 44. Kxg5 e4 45. Kf4 Kd4 46. h3 e3 0-1

[Event "45th FIDE Womens Olympiad 2024"]
[Site "Budapest"]
[Date "2024.09.11"]
[Round "1.205"]
[White "Wafa, Shrook"]
[Black "Andhin, Chethanah"]
[Result "1-0"]
[ECO "C14"]
[WhiteElo "2137"]
[BlackElo "1607"]
[Annotator "NA RC"]
[PlyCount "39"]
[EventDate "2024.09.05"]
[EventType "team-tourn"]
[EventCountry "HUN"]
[SourceTitle "playchess.com"]
[Source "ChessBase"]
[SourceQuality "1"]
[WhiteTeam "Egypt"]
[BlackTeam "Mauritius"]
[WhiteTeamCountry "EGY"]
[BlackTeamCountry "MRI"]
[TimeControl "40/5400+30:1800+30"]

1. e4 e6 2. d4 d5 3. Nc3 Nf6 4. Bg5 Be7 5. Bxf6 Bxf6 6. Nf3 O-O 7. Bd3 b6 8. Qe2 Bb7 9. O-O-O c5 10. e5 Bg5+ 11. Kb1 c4 12. Bxh7+ Kxh7 13. h4 Be7 14. Ng5+ Kg6 15. Qf3 Bxg5 16. hxg5 Rh8 17. Ne2 f5 18. gxf6 Nd7 19. Qg4+ Kf7 20. Qxg7+ 1-0

[Event "45th FIDE Womens Olympiad 2024"]
[Site "Budapest"]
[Date "2024.09.11"]
[Round "1.206"]
[White "Acham, Meritza"]
[Black "Wafa, Shahenda"]
[Result "0-1"]
[ECO "E94"]
[WhiteElo "1667"]
[BlackElo "2102"]
[Annotator "ChessBase"]
[PlyCount "92"]
[EventDate "2024.09.05"]
[EventType "team-tourn"]
[EventCountry "HUN"]
[SourceTitle "playchess.com"]
[Source "ChessBase"]
[SourceQuality "1"]
[WhiteTeam "Mauritius"]
[BlackTeam "Egypt"]
[WhiteTeamCountry "MRI"]
[BlackTeamCountry "EGY"]
[TimeControl "40/5400+30:1800+30"]

1. d4 Nf6 2. c4 g6 3. Nc3 Bg7 4. e4 d6 5. Nf3 O-O 6. Be2 c6 7. O-O Nbd7 8. h3 e5 9. Be3 Re8 10. d5 c5 11. Qd2 a6 12. a4 Nf8 13. Rfb1 N6d7 14. Qc2 h6 15. b4 b6 16. bxc5 Nxc5 17. Bxc5 bxc5 18. Ra2 f5 19. Rab2 Qf6 20. Rb6 Nd7 21. Rc6 Bf8 22. Bd3 f4 23. Nh2 h5 24. Be2 Ra7 25. Qd1 Qd8 26. g3 fxg3 27. fxg3 Qg5 28. Kg2 Qd8 29. Qd2 Nf6 30. Qg5 Rg7 31. Nf3 Be7 32. Qh6 Qd7 33. Ng5 Bf8 34. Rxc8 Qxc8 35. Ne6 Rxe6 36. dxe6 Qxe6 37. Rf1 Be7 38. Qc1 g5 39. Rf5 Nxe4 40. Nxe4 Qxf5 41. Bd3 g4 42. hxg4 Qxg4 43. Qe3 h4 44. Kh2 hxg3+ 45. Qxg3 Qd1 46. Qh3 Qg1# 0-1

[Event "45th FIDE Womens Olympiad 2024"]
[Site "Budapest"]
[Date "2024.09.11"]
[Round "1.208"]
[White "Beekhy, Aamirah"]
[Black "Allam, Yara"]
[Result "0-1"]
[ECO "D02"]
[WhiteElo "1600"]
[BlackElo "1920"]
[Annotator "NA"]
[PlyCount "88"]
[EventDate "2024.09.05"]
[EventType "team-tourn"]
[EventCountry "HUN"]
[SourceTitle "playchess.com"]
[Source "ChessBase"]
[SourceQuality "1"]
[WhiteTeam "Mauritius"]
[BlackTeam "Egypt"]
[WhiteTeamCountry "MRI"]
[BlackTeamCountry "EGY"]
[TimeControl "40/5400+30:1800+30"]

1. d4 d5 2. Bf4 Nf6 3. e3 c5 4. Nf3 Nc6 5. Be2 Bf5 6. c3 Qb6 7. Na3 c4 8. Qc1 e6 9. Nb1 h6 10. h3 Be7 11. Nbd2 Qa5 12. O-O b5 13. a3 O-O 14. Bd1 Nh5 15. Bh2 Bh7 16. Bc2 f5 17. g4 Nf6 18. g5 hxg5 19. Nxg5 Nd8 20. Nxh7 Nxh7 21. Kh1 Rf6 22. f4 Rh6 23. Rf3 Nc6 24. Qg1 Kf7 25. Qg2 Rg8 26. Rg1 g6 27. Bd1 Qd8 28. Rg3 Bh4 29. Rf3 a5 30. Bg3 Be7 31. Bh2 b4 32. axb4 axb4 33. Rg3 Bh4 34. Rf3 Qa5 35. Bg3 Bxg3 36. Rxg3 bxc3 37. bxc3 Qxc3 38. Nf3 Qb4 39. Ng5+ Nxg5 40. Rxg5 Ne7 41. Qh2 Ra8 42. Qg3 Rah8 43. Kh2 Qd2+ 44. Qg2 Rxh3# 0-1

[Event "45th FIDE Womens Olympiad 2024"]
[Site "Budapest"]
[Date "2024.09.11"]
[Round "1.209"]
[White "Nomcebo, Sibisi"]
[Black "Wagener, Anna"]
[Result "0-1"]
[ECO "A88"]
[WhiteElo "1570"]
[BlackElo "2251"]
[Annotator "ChessBase"]
[PlyCount "86"]
[EventDate "2024.09.05"]
[EventType "team-tourn"]
[EventCountry "HUN"]
[SourceTitle "playchess.com"]
[Source "ChessBase"]
[SourceQuality "1"]
[WhiteTeam "Eswatini"]
[BlackTeam "Luxembourg"]
[BlackTeamCountry "LUX"]
[TimeControl "40/5400+30:1800+30"]

1. d4 f5 2. c4 Nf6 3. Nf3 g6 4. g3 Bg7 5. Bg2 O-O 6. O-O d6 7. Nc3 c6 8. Bg5 h6 9. Bxf6 Bxf6 10. e4 fxe4 11. Nxe4 Bg7 12. Rc1 Qe8 13. Re1 Qf7 14. b3 Na6 15. d5 c5 16. h3 Bd7 17. a3 Bb2 18. Rc2 Bxa3 19. Rce2 Rae8 20. Ned2 Bb2 21. Qb1 Bf6 22. Nf1 Nb4 23. Ne3 b5 24. Nh2 bxc4 25. bxc4 Bc3 26. Rf1 a5 27. Nhg4 Kh7 28. h4 Bxg4 29. Nxg4 Qf5 30. Re4 h5 31. Ne3 Qf6 32. Re6 Qg7 33. Be4 Rf6 34. Qd1 Rxe6 35. dxe6 Qe5 36. Qa4 Rf8 37. Bd5 Bd4 38. Qd7 Nxd5 39. Nxd5 Qxg3+ 40. Kh1 Qxh4+ 41. Kg1 Bxf2+ 42. Kg2 Qg3+ 43. Kh1 Qh3# 0-1